[Event "12th WLC Weekend 2022"]
[Site "Eindhoven"]
[Date "2022.05.15"]
[Round "6.24"]
[White "Winkels, Marcel"]
[Black "Grooten, Tommy"]
[Result "1/2-1/2"]
[ECO "B84"]
[WhiteElo "1965"]
[BlackElo "1847"]
[Annotator "TA"]
[PlyCount "139"]
[EventDate "2022.05.13"]
[EventType "swiss"]
[EventCountry "NED"]
[SourceTitle "playchess.com"]
[Source "ChessBase"]
[SourceQuality "1"]
[TimeControl "5400+30"]

{[%evp 15,139,-28,-22,-25,-26,-29,-25,-42,-43,-58,-58,-70,-44,-85,-84,-77,-72,-78,-78,-81,-57,-77,-50,-73,-62,-92,-46,-48,-45,-82,-56,-126,-49,-93,-33,-39,-39,-46,-27,-36,-20,-11,0,0,0,0,49,-35,-33,-191,8,0,0,-36,-33,-31,0,0,56,56,78,66,159,156,274,277,279,268,262,261,247,166,171,169,166,145,142,91,83,82,91,90,89,39,85,11,11,11,14,0,133,8,327,67,228,1,1,1,1,0,0,0,0,0,0,0,0,0,0,0,0,0,0,0,0,0,0,0,8,0,0,0,8,8,8,8]} 1. e4 {[%emt 0:00:01]} c5 {[%emt 0:00:05]} 2. Nf3 {[%emt 0:00:10]} e6 {[%emt 0:00:05]} 3. d4 {[%emt 0:00:12]} cxd4 {[%emt 0:00:03]} 4. Nxd4 {[%emt 0:00:07]} Nf6 {[%emt 0:00:05]} 5. Nc3 {[%emt 0:00:08]} d6 {[%emt 0:00:09]} 6. Be2 {[%emt 0:00:30]} a6 {[%emt 0:00:05]} 7. O-O {[%emt 0:00:38]} b5 {[%emt 0:00:09]} 8. a3 {[%emt 0:00:13]} Bb7 {[%emt 0:00:09]} 9. Bf3 {[%emt 0:00:55][%cal Oe4e5] aiming for e5! B84: Sicilian Scheveningen: 6 Be2 a6, lines without early Be3.} Nbd7 {[%emt 0:00:24]} 10. Re1 {[%emt 0:00:58]} Ne5 {[%emt 0:00:13]} 11. Bf4 {[%emt 0:02:21] Black has an edge.} Be7 {[%emt 0:00:11]} 12. Bxe5 {[%emt 0:00:45]} dxe5 {[%emt 0:00:04]} 13. Nb3 {[%emt 0:00:57]} Qc7 {[%emt 0:00:13]} 14. Qe2 {[%emt 0:01:04]} O-O {[%emt 0:00:27] [#]} 15. Red1 $146 {[%emt 0:00:41]} ({Predecessor:} 15. Na2 Rac8 16. c3 Rfd8 17. Red1 h6 18. Nb4 Nh7 19. Rxd8+ Bxd8 20. Rd1 Ng5 21. Nd2 {0-1 (31) Kapolkova,G (1567)-Zetocha,C (2303) Slovakia 2020}) 15... Rfd8 {[%emt 0:00:12]} 16. h3 {[%emt 0:01:18]} Rac8 {[%emt 0:00:46]} 17. Rxd8+ {[%emt 0:01:07]} Rxd8 {[%emt 0:00:08]} 18. Rd1 {[%emt 0:00:38]} Nd7 {[%emt 0:00:11]} 19. Nc1 {[%emt 0:08:40]} h6 {[%emt 0:00:32]} 20. g3 {[%emt 0:05:56]} Nb6 {[%emt 0:00:44]} (20... Rc8 $17) 21. Rxd8+ $15 {[%emt 0:00:29]} Qxd8 {[%emt 0:00:16]} 22. Qd1 {[%emt 0:02:33]} Qc7 {[%emt 0:00:13] Threatens to win with ...Nc4.} 23. Be2 {[%emt 0:00:47]} (23. Nb1 $15) 23... Bc6 {[%emt 0:03:03]} (23... f5 $17 24. Bf3 Nc4 25. exf5 Nxb2) 24. Bd3 {[%emt 0:01:10]} Nd7 {[%emt 0:01:10]} ({Better is} 24... Nc4 $1 $17 {[%cal Rc4b2]} 25. Bxc4 bxc4) 25. Nb3 {[%emt 0:03:04]} Bd8 {[%emt 0:00:51]} 26. Qe2 {[%emt 0:01:28]} Qa7 {[%emt 0:02:47]} 27. Nd1 {[%emt 0:02:43]} Nf6 {[%emt 0:02:14]} 28. Nd2 {[%emt 0:01:05]} Ba5 {[%emt 0:01:39]} 29. b4 {[%emt 0:00:28]} Bb6 {[%emt 0:00:09]} 30. c4 {[%emt 0:02:41][%cal Rc4b5]} Qd7 {[%emt 0:01:16]} (30... Bd4 $11) 31. cxb5 {[%emt 0:05:22]} (31. c5 $14 Bc7 32. Bc2) 31... axb5 {[%emt 0:00:14]} 32. Nc3 $2 {[%emt 0:04:00] [#]} (32. Kg2 $15) 32... Qd4 $2 {[%emt 0:03:12]} (32... Bxf2+ $1 $19 {[%mdl 512]} 33. Kxf2 Qd4+ 34. Qe3 Qxc3) 33. Ndb1 {[%emt 0:03:50]} g6 {[%emt 0:02:24]} 34. Bxb5 {[%emt 0:08:18]} Bxe4 {[%emt 0:02:22]} 35. Qd2 {[%emt 0:01:35]} (35. Nxe4 $2 Nxe4 36. Kg2 Nxf2 $19) 35... Bxb1 {[%emt 0:01:48] A strong pair of Bishops.} 36. Qxd4 {[%emt 0:01:32]} exd4 {[%emt 0:00:15]} (36... Bxd4 $11 37. Nxb1 Kf8) 37. Nxb1 {[%emt 0:00:09][%mdl 4096] Endgame KBN-KBN} Nd5 {[%emt 0:00:40]} 38. Bc4 {[%emt 0:01:12]} Nc7 {[%emt 0:00:29]} (38... Nc3 $14 39. Nxc3 dxc3) 39. a4 $16 {[%emt 0:00:25][%cal Ba3a4,Ba4a5][%mdl 32] Hoping for a5.} Kf8 {[%emt 0:00:34]} (39... Ne8 $16 {might work better.} 40. a5 Bd8) 40. a5 $18 {[%emt 0:00:11]} Ba7 {[%emt 0:00:27]} 41. b5 {[%emt 0:00:37] b6 is the strong threat.} Na8 {[%emt 0:00:24]} 42. Nd2 {[%emt 0:01:30]} Ke7 {[%emt 0:00:21]} 43. b6 {[%emt 0:01:05]} Bxb6 {[%emt 0:00:14]} 44. axb6 {[%emt 0:00:09]} Nxb6 {[%emt 0:00:04]} 45. Ba2 {[%emt 0:00:18]} e5 {[%emt 0:00:30]} 46. Kf1 {[%emt 0:01:16]} (46. f4 $142) 46... f5 $16 {[%emt 0:00:48]} 47. f3 {[%emt 0:00:15]} Kf6 {[%emt 0:00:24]} 48. Ke2 {[%emt 0:00:26]} Na4 {[%emt 0:00:40] White must now prevent ...Nc3+.} 49. Kd3 {[%emt 0:00:41]} ({White should play} 49. Bb3 $1 $16 {[%cal Rb3a4]} Nc5 50. Bd5) 49... Nc3 {[%emt 0:01:45]} (49... Nc5+ $14 50. Kc4 Na4) 50. Bg8 {[%emt 0:00:59]} (50. Bb3 $1 $16) 50... Nd1 $1 $11 {[%emt 0:02:00]} 51. h4 {[%emt 0:03:56]} g5 {[%emt 0:01:03]} 52. h5 {[%emt 0:00:54]} Nc3 {[%emt 0:02:43]} (52... g4 $11 {remains equal.}) 53. Bh7 {[%emt 0:01:19]} (53. g4 $1 $16) 53... Ke6 $2 {[%emt 0:01:44][%mdl 8192]} (53... Nd1 $1 $11) 54. Nb3 $2 {[%emt 0:01:20]} (54. g4 $18) 54... Kf6 {[%emt 0:03:00] [#]} (54... Nd1 $1 $14) 55. Na5 $2 {[%emt 0:00:54]} (55. g4 $1 $18) 55... e4+ {[%emt 0:01:43] The position is equal.} 56. fxe4 {[%emt 0:01:21]} Nxe4 {[%emt 0:00:17]} 57. Nc6 {[%emt 0:07:05]} (57. Kxd4 Nxg3 58. Bg6 Ne2+ 59. Ke3 Nf4) 57... Nxg3 {[%emt 0:01:14]} 58. Bg6 {[%emt 0:00:50]} g4 {[%emt 0:00:37]} 59. Nxd4 {[%emt 0:00:19]} f4 {[%emt 0:00:56]} 60. Ne2 {[%emt 0:01:11]} Nxe2 {[%emt 0:00:59]} 61. Kxe2 {[%emt 0:00:07] KB-K3P} Kg5 {[%emt 0:00:08]} 62. Kf2 {[%emt 0:00:42]} Kh4 {[%emt 0:00:39]} 63. Kg2 {[%emt 0:00:53]} f3+ {[%emt 0:01:13]} 64. Kf2 {[%emt 0:00:39]} g3+ {[%emt 0:00:16]} 65. Kxf3 {[%emt 0:03:48]} Kh3 {[%emt 0:00:15]} 66. Be4 {[%emt 0:00:10]} (66. Bf5+ Kh2 67. Bg6 g2 $19) 66... Kh4 {[%emt 0:01:53]} (66... Kh2 {leads to mate.} 67. Kg4 Kg1 68. Kxg3 Kf1 69. Kf4 Ke2 70. Kf5 Kd2 71. Kg6) (66... g2 $5 67. Kf2 Kh2 68. Bxg2 $11) 67. Bg6 {[%emt 0:00:53]} Kh3 {[%emt 0:00:13]} 68. Be4 {[%emt 0:00:42]} ({Don't blunder} 68. Bf5+ $2 Kh2 69. Bg6 g2 $19) 68... Kh4 {[%emt 0:00:15]} (68... Kh2 {gets mated.} 69. Kg4 Kg1 70. Kxg3 Kf1 71. Kf4 Ke2 72. Kf5 Ke3 {[#]} 73. Kg6 $1 Kxe4 74. Kxh6) (68... g2 $5 69. Kf2 Kh2 70. Bxg2 $11) 69. Kg2 {[%emt 0:00:19]} Kxh5 {[%emt 0:00:18]} 70. Kxg3 {[%emt 0:00:27] Weighted Error Value: White=0.41/Black=0.42} 1/2-1/2

[Event "12th WLC Weekend 2022"]
[Site "Eindhoven"]
[Date "2022.05.15"]
[Round "6.25"]
[White "Broekhuis, Jan"]
[Black "Krueger, Andre"]
[Result "0-1"]
[ECO "B22"]
[WhiteElo "1845"]
[BlackElo "1970"]
[Annotator "TA"]
[PlyCount "50"]
[EventDate "2022.05.13"]
[EventType "swiss"]
[EventCountry "NED"]
[SourceTitle "playchess.com"]
[Source "ChessBase"]
[SourceQuality "1"]
[TimeControl "5400+30"]

{[%evp 11,50,18,12,0,-5,-28,-16,-20,-3,-8,-8,-27,-25,-25,-22,-27,-23,-38,-35,-43,-6,-47,-22,-23,-13,-48,-45,-50,-43,-47,-49,-44,-43,-62,-33,-65,-41,-406,-406,-773,-697]} 1. e4 {[%emt 0:00:04]} c5 {[%emt 0:00:08]} 2. Nf3 {[%emt 0:00:29]} e6 {[%emt 0:00:07]} 3. c3 {[%emt 0:00:36]} Nf6 {[%emt 0:00:08]} 4. e5 {[%emt 0:01:51]} Nd5 {[%emt 0:00:05]} 5. d4 {[%emt 0:00:16]} cxd4 {[%emt 0:00:12]} 6. cxd4 {[%emt 0:00:08]} d6 {[%emt 0:00:43]} 7. Bb5+ {[%emt 0:05:20] B22: Sicilian: 2 c3.} Bd7 {[%emt 0:00:57]} 8. Bxd7+ {[%emt 0:00:34]} Nxd7 {[%emt 0:00:43]} 9. O-O {[%emt 0:00:47] The position is equal.} Qc7 {[%emt 0:01:14][%cal Rd6e5] Inhibits Nc3.} 10. Bd2 {[%emt 0:03:42]} Be7 {[%emt 0:02:31][%cal Rd6e5]} 11. Re1 {[%emt 0:01:06]} O-O {[%emt 0:02:11]} 12. Nc3 {[%emt 0:00:26]} Nxc3 {[%emt 0:00:08]} 13. Bxc3 {[%emt 0:00:28]} dxe5 {[%emt 0:12:16]} 14. Nxe5 {[%emt 0:02:40]} Nf6 {[%emt 0:03:59]} 15. Rc1 {[%emt 0:02:02][%cal Oc3b4] [#]} Rfc8 $146 {[%emt 0:08:57]} ({Predecessor:} 15... Qb6 16. Qa4 Rfd8 17. Red1 Qd6 18. Qb5 Qd5 19. Qa4 b5 20. Qa5 Bd6 21. Bb4 Bxe5 22. dxe5 Qxd1+ 23. Rxd1 Rxd1+ {0-1 (31) Kruzitis,R-Van Kampen,R (2475) Mureck 2005}) 16. Qe2 {[%emt 0:09:18][%cal Od4d5]} Bd6 {[%emt 0:05:05]} 17. Bd2 {[%emt 0:02:18]} Qd8 {[%emt 0:08:32]} 18. Rxc8 {[%emt 0:10:06]} Rxc8 {[%emt 0:00:42]} 19. Bg5 {[%emt 0:00:32]} Be7 {[%emt 0:01:52]} 20. h3 {[%emt 0:10:20]} Qd5 {[%emt 0:03:29]} 21. b3 {[%emt 0:02:07]} a6 {[%emt 0:06:36]} ({Much less strong is} 21... Qxd4 22. Nxf7 $1 Qe4 23. Qxe4 $14) 22. Nf3 {[%emt 0:02:18]} Bb4 {[%emt 0:00:35]} 23. Rd1 {[%emt 0:00:45]} Ne4 {[%emt 0:00:21] Black is more active.} 24. Bd2 {[%emt 0:06:49][%mdl 8192] [#]} (24. Rc1 $15 Rxc1+ 25. Bxc1) 24... Bxd2 $1 $19 {[%emt 0:00:11]} 25. Nxd2 {[%emt 0:00:06]} (25. Rxd2 $142 Nxd2 26. Qxd2) 25... Nc3 {[%emt 0:01:01] Weighted Error Value: White=0.71/Black=0.07 (flawless)} 0-1

[Event "12th WLC Weekend 2022"]
[Site "Eindhoven"]
[Date "2022.05.15"]
[Round "6.26"]
[White "Geboers, Jimmy"]
[Black "Blijlevens, Pim"]
[Result "1-0"]
[ECO "A96"]
[WhiteElo "1845"]
[BlackElo "1958"]
[Annotator "TA"]
[PlyCount "79"]
[EventDate "2022.05.13"]
[EventType "swiss"]
[EventCountry "NED"]
[SourceTitle "playchess.com"]
[Source "ChessBase"]
[SourceQuality "1"]
[TimeControl "5400+30"]

{[%evp 17,79,31,46,31,25,0,0,10,13,12,10,-30,3,2,15,7,16,17,0,12,115,113,102,-3,0,-4,0,0,0,0,0,0,0,0,31,26,27,16,26,32,81,17,38,42,50,33,167,163,169,154,306,318,320,310,277,306,297,179,751,777,767,759,757,745]} 1. d4 {[%emt 0:00:02]} e6 {[%emt 0:00:07]} 2. c4 {[%emt 0:00:06]} f5 {[%emt 0:00:06]} 3. g3 {[%emt 0:00:12]} Nf6 {[%emt 0:00:08]} 4. Bg2 {[%emt 0:00:08]} Be7 {[%emt 0:00:09]} 5. Nc3 {[%emt 0:00:23]} O-O {[%emt 0:00:09]} 6. Nf3 {[%emt 0:00:37]} d6 {[%emt 0:00:08]} 7. O-O {[%emt 0:00:18]} Ne4 {[%emt 0:00:10]} 8. Qc2 {[%emt 0:00:33]} Nxc3 {[%emt 0:00:07]} 9. Qxc3 {[%emt 0:00:06]} Bf6 {[%emt 0:00:08]} 10. b3 {[%emt 0:00:34] A96: Classical Dutch: Fluid Systems: Early deviations.} Nc6 {[%emt 0:01:13]} 11. Bb2 {[%emt 0:00:24]} e5 {[%emt 0:01:19]} 12. dxe5 {[%emt 0:00:26] The position is equal.} dxe5 {[%emt 0:00:21]} 13. Rad1 {[%emt 0:10:28]} Qe7 {[%emt 0:02:34] [#] ...e4 is the strong threat.} 14. e4 $146 {[%emt 0:03:27]} ({Predecessor:} 14. Qe3 Bd7 15. Rd5 Rae8 16. Rfd1 Bc8 17. Qc1 e4 18. Bxf6 Qxf6 19. Nd4 Ne7 20. Ra5 {0-1 (29) Plischki,S (2413)-Vybiral,Z (2269) Prague 2018}) 14... fxe4 {[%emt 0:06:34]} 15. Nd2 {[%emt 0:00:36]} Bg4 {[%emt 0:01:09]} 16. Rde1 {[%emt 0:03:37]} Nd4 {[%emt 0:01:01]} 17. Kh1 {[%emt 0:00:09]} Be2 {[%emt 0:20:41]} 18. Rg1 {[%emt 0:00:17]} Bg5 {[%emt 0:07:00]} (18... Rad8 $11 {keeps the balance.}) 19. Nxe4 $16 {[%emt 0:06:03] And now Qa5 would win.} Bf3 {[%emt 0:01:28] [#]} 20. Nxg5 {[%emt 0:02:43]} (20. Qa5 $1 $16 Bxg2+ 21. Kxg2) 20... Qxg5 $11 {[%emt 0:00:46]} 21. Qe3 {[%emt 0:00:43]} Qf6 {[%emt 0:05:29]} 22. Qxe5 {[%emt 0:07:15]} Bxg2+ {[%emt 0:06:29]} 23. Rxg2 {[%emt 0:00:07]} Qxe5 {[%emt 0:01:03]} 24. Rxe5 {[%emt 0:00:06]} Nf3 {[%emt 0:00:20] Hoping for ...Rad8.} 25. Re7 $36 {[%emt 0:00:06][%csl LRc7,LRg7][%mdl 2048] White is pushing.} Rf7 {[%emt 0:00:09]} (25... Rfe8 $5 {[%cal Re8e7]} 26. Rxg7+ Kf8 $11) 26. Rxf7 {[%emt 0:00:04]} Kxf7 $14 {[%emt 0:00:06][%mdl 4096] Endgame KRB-KRN} 27. g4 $1 {[%emt 0:00:07]} Rd8 {[%emt 0:01:39] ( -> ...Rd1+)} 28. Rg3 {[%emt 0:00:07]} Nh4 {[%emt 0:01:54] [#]} (28... Rd1+ $1 $14 {is more appropriate.} 29. Kg2 Ne1+ 30. Kh3 Nd3 31. Rf3+ Kg8) 29. Bc3 {[%emt 0:02:57]} (29. Bc1 $1 $16) 29... Rd7 {[%emt 0:03:59]} 30. h3 {[%emt 0:01:56]} Rd1+ {[%emt 0:00:35]} 31. Kh2 {[%emt 0:00:28]} Rc1 {[%emt 0:00:54] A mistake that costs the game.} ({Better is} 31... g5 $1 $14) 32. Rd3 $18 {[%emt 0:00:45]} Ng6 {[%emt 0:01:33]} 33. Kg3 {[%emt 0:00:46]} Nf8 $2 {[%emt 0:03:21]} (33... b6 $16 {keeps fighting.} 34. f4 c5) 34. Bb4 {[%emt 0:00:31] Strongly threatening Rf3+.} Ne6 {[%emt 0:00:46]} 35. Rd7+ {[%emt 0:00:21]} Kf6 {[%emt 0:01:00]} 36. f4 {[%emt 0:01:28] aiming for Be7+.} c5 {[%emt 0:04:15]} 37. g5+ {[%emt 0:00:40]} Kf5 $2 {[%emt 0:02:01]} (37... Kg6) 38. Rd5+ {[%emt 0:00:30] White is clearly winning.} Ke4 {[%emt 0:00:51]} 39. Re5+ {[%emt 0:00:17]} Kd4 {[%emt 0:00:19]} 40. Bd2 {[%emt 0:02:27] Weighted Error Value: White=0.18 (very precise) /Black=0.32} 1-0

[Event "12th WLC Weekend 2022"]
[Site "Eindhoven"]
[Date "2022.05.15"]
[Round "6.27"]
[White "Verweij, David"]
[Black "Molenaar, Toine"]
[Result "1-0"]
[ECO "C58"]
[WhiteElo "1728"]
[BlackElo "1823"]
[Annotator "NA RC COMBH"]
[PlyCount "129"]
[EventDate "2022.05.13"]
[EventType "swiss"]
[EventCountry "NED"]
[SourceTitle "playchess.com"]
[Source "ChessBase"]
[SourceQuality "1"]
[TimeControl "5400+30"]

1. e4 {[%emt 0:00:12]} e5 {[%emt 0:00:11]} 2. Nf3 {[%emt 0:00:16]} Nc6 {[%emt 0:00:08]} 3. Bc4 {[%emt 0:00:14]} Nf6 {[%emt 0:00:09]} 4. Ng5 {[%emt 0:01:13]} d5 {[%emt 0:00:16]} 5. exd5 {[%emt 0:00:12]} Na5 {[%emt 0:00:19]} 6. Bb5+ {[%emt 0:00:52]} c6 {[%emt 0:00:08]} 7. dxc6 {[%emt 0:00:39]} bxc6 {[%emt 0:00:06]} 8. Qf3 {[%emt 0:03:53]} Be7 {[%emt 0:00:28]} 9. d3 {[%emt 0:07:58]} Bd7 {[%emt 0:03:17]} 10. Ba4 {[%emt 0:00:21]} O-O {[%emt 0:02:46]} 11. Nc3 {[%emt 0:02:26]} Ng4 {[%emt 0:04:38]} 12. h4 {[%emt 0:08:53]} f6 {[%emt 0:04:24]} 13. Nh3 {[%emt 0:02:48]} Qb6 {[%emt 0:11:46]} 14. a3 {[%emt 0:01:46]} Kh8 {[%emt 0:01:46]} 15. b4 {[%emt 0:01:02]} Nb7 {[%emt 0:05:28]} 16. Rb1 {[%emt 0:05:24]} Nd6 {[%emt 0:03:51]} 17. Bd2 {[%emt 0:02:01]} f5 {[%emt 0:09:00]} 18. g3 {[%emt 0:14:29]} Bf6 {[%emt 0:04:16]} 19. O-O {[%emt 0:06:23]} Rae8 {[%emt 0:02:55]} 20. Nd5 {[%emt 0:07:04]} Qa6 {[%emt 0:07:51]} 21. Nxf6 {[%emt 0:00:39]} Nxf6 {[%emt 0:01:51]} 22. Bb3 {[%emt 0:00:26]} Nb5 {[%emt 0:03:26]} 23. Bc4 {[%emt 0:02:38]} Qc8 {[%emt 0:01:09]} 24. Ra1 {[%emt 0:06:39]} h6 {[%emt 0:02:18]} 25. Ng5 {[%emt 0:06:53]} Nd4 {[%emt 0:10:10]} 26. Qg2 {[%emt 0:01:28]} Nd5 {[%emt 0:04:02]} 27. Nf3 {[%emt 0:02:28]} Ne2+ {[%emt 0:04:56]} 28. Kh2 {[%emt 0:00:47]} f4 {[%emt 0:02:35]} 29. Rae1 {[%emt 0:01:00]} Nd4 {[%emt 0:01:12]} 30. Nxd4 {[%emt 0:00:27]} exd4 {[%emt 0:00:49]} 31. Bxd5 {[%emt 0:01:23]} fxg3+ {[%emt 0:00:21]} 32. fxg3 {[%emt 0:00:24]} cxd5 {[%emt 0:00:32]} 33. Bf4 {[%emt 0:01:32]} Qc6 {[%emt 0:03:52]} 34. Kg1 {[%emt 0:04:31]} Re6 {[%emt 0:01:36]} 35. Qf2 {[%emt 0:02:08]} Ref6 {[%emt 0:01:14]} 36. Qxd4 {[%emt 0:01:50]} Qxc2 {[%emt 0:01:31]} 37. Rf2 {[%emt 0:01:29]} Qc6 {[%emt 0:01:08]} 38. Ref1 {[%emt 0:02:13]} Bh3 {[%emt 0:00:23]} 39. Rc1 {[%emt 0:00:07]} Qe6 {[%emt 0:00:44]} 40. Kh2 {[%emt 0:00:52]} Bf5 {[%emt 0:01:12]} 41. Rg1 {[%emt 0:00:39]} Qa6 {[%emt 0:00:26]} 42. Be5 {[%emt 0:00:37]} R6f7 {[%emt 0:00:33]} 43. Rgf1 {[%emt 0:00:45]} Qg6 {[%emt 0:00:46]} 44. g4 {[%emt 0:01:05]} Be6 {[%emt 0:00:57]} 45. Rxf7 {[%emt 0:00:31]} Rxf7 {[%emt 0:00:15]} 46. h5 {[%emt 0:00:55]} Qg5 {[%emt 0:00:17]} 47. Rxf7 {[%emt 0:00:37]} Bxf7 {[%emt 0:00:01]} 48. Kg3 {[%emt 0:00:33]} Be6 {[%emt 0:00:19]} 49. b5 {[%emt 0:00:37]} Kh7 {[%emt 0:00:06]} 50. Qf4 {[%emt 0:00:23]} Qxf4+ {[%emt 0:01:04]} 51. Kxf4 {[%emt 0:00:01]} g6 {[%emt 0:00:20]} 52. hxg6+ {[%emt 0:00:36]} Kxg6 {[%emt 0:00:01]} 53. Bb8 {[%emt 0:00:19]} Bd7 {[%emt 0:00:23]} 54. a4 {[%emt 0:00:17]} a6 {[%emt 0:00:14]} 55. bxa6 {[%emt 0:00:36]} Bxa4 {[%emt 0:00:02]} 56. d4 {[%emt 0:00:52]} Kf6 {[%emt 0:00:15]} 57. Bd6 {[%emt 0:00:13]} Kf7 {[%emt 0:00:24]} 58. Ke5 {[%emt 0:00:21]} Bc6 {[%emt 0:00:02]} 59. Bc7 {[%emt 0:00:14]} Ke7 {[%emt 0:00:47]} 60. Ba5 {[%emt 0:00:34]} Bd7 {[%emt 0:00:41]} 61. Bd2 {[%emt 0:00:25]} Kd8 {[%emt 0:00:48]} 62. Bxh6 {[%emt 0:01:07]} Kc7 {[%emt 0:00:41]} 63. g5 {[%emt 0:00:15]} Be8 {[%emt 0:00:13]} 64. Kf6 {[%emt 0:00:21]} Kb6 {[%emt 0:00:09]} 65. g6 {[%emt 0:00:18]} 1-0

[Event "12th WLC Weekend 2022"]
[Site "Eindhoven"]
[Date "2022.05.15"]
[Round "6.28"]
[White "Plasmans, Bart"]
[Black "Lind, Jacco"]
[Result "1-0"]
[ECO "C50"]
[WhiteElo "1775"]
[BlackElo "1801"]
[Annotator "NA RC COMBH"]
[PlyCount "47"]
[EventDate "2022.05.13"]
[EventType "swiss"]
[EventCountry "NED"]
[SourceTitle "playchess.com"]
[Source "ChessBase"]
[SourceQuality "1"]
[TimeControl "5400+30"]

1. e4 {[%emt 0:00:06]} e5 {[%emt 0:00:05]} 2. Nf3 {[%emt 0:00:04]} Nc6 {[%emt 0:00:05]} 3. Bc4 {[%emt 0:00:11]} Bc5 {[%emt 0:00:07]} 4. O-O {[%emt 0:00:13]} Nf6 {[%emt 0:00:07]} 5. d4 {[%emt 0:00:14]} Bxd4 {[%emt 0:00:32]} 6. Nxd4 {[%emt 0:00:14]} Nxd4 {[%emt 0:00:07]} 7. f4 {[%emt 0:00:30]} d6 {[%emt 0:02:33]} 8. c3 {[%emt 0:06:31]} Ne6 {[%emt 0:02:06]} 9. fxe5 {[%emt 0:02:15]} dxe5 {[%emt 0:00:05]} 10. Qb3 {[%emt 0:02:24]} Nxe4 {[%emt 0:04:14]} 11. Bxe6 {[%emt 0:00:51]} Bxe6 {[%emt 0:00:16]} 12. Qa4+ {[%emt 0:00:10]} c6 {[%emt 0:02:23]} 13. Qxe4 {[%emt 0:00:13]} f6 {[%emt 0:00:13]} 14. b3 {[%emt 0:04:17]} Qd7 {[%emt 0:00:39]} 15. Be3 {[%emt 0:06:59]} Bd5 {[%emt 0:01:23]} 16. Qc2 {[%emt 0:05:10]} Qg4 {[%emt 0:00:40]} 17. Qf2 {[%emt 0:01:47]} h5 {[%emt 0:00:41]} 18. h3 {[%emt 0:01:21]} Qg6 {[%emt 0:00:09]} 19. Nd2 {[%emt 0:00:32]} f5 {[%emt 0:00:24]} 20. c4 {[%emt 0:00:20]} Be6 {[%emt 0:00:06]} 21. Qh4 {[%emt 0:15:33]} O-O {[%emt 0:02:10]} 22. Nf3 {[%emt 0:02:15]} Bf7 {[%emt 0:01:46]} 23. Nxe5 {[%emt 0:02:46]} Qe6 {[%emt 0:00:08]} 24. Bf4 {[%emt 0:00:49]} 1-0

[Event "12th WLC Weekend 2022"]
[Site "Eindhoven"]
[Date "2022.05.15"]
[Round "6.29"]
[White "Krenning, Jasper"]
[Black "Kurt, Sascha"]
[Result "0-1"]
[ECO "E61"]
[WhiteElo "1736"]
[BlackElo "1751"]
[Annotator "NA RC COMBH"]
[PlyCount "96"]
[EventDate "2022.05.13"]
[EventType "swiss"]
[EventCountry "NED"]
[SourceTitle "playchess.com"]
[Source "ChessBase"]
[SourceQuality "1"]
[TimeControl "5400+30"]

1. d4 {[%emt 0:00:03]} Nf6 {[%emt 0:00:05]} 2. c4 {[%emt 0:00:18]} g6 {[%emt 0:00:08]} 3. Nc3 {[%emt 0:00:06]} Bg7 {[%emt 0:00:11]} 4. e3 {[%emt 0:01:08]} d6 {[%emt 0:00:10]} 5. Bd3 {[%emt 0:00:54]} O-O {[%emt 0:00:20]} 6. h4 {[%emt 0:01:06]} h5 {[%emt 0:01:42]} 7. Nge2 {[%emt 0:03:40]} e5 {[%emt 0:00:50]} 8. d5 {[%emt 0:02:32]} Na6 {[%emt 0:02:15]} 9. Bb1 {[%emt 0:03:25]} Ne8 {[%emt 0:03:49]} 10. a3 {[%emt 0:03:48]} f5 {[%emt 0:01:41]} 11. e4 {[%emt 0:03:31]} f4 {[%emt 0:00:46]} 12. f3 {[%emt 0:11:27]} Bf6 {[%emt 0:01:13]} 13. Qc2 {[%emt 0:10:07]} Bxh4+ {[%emt 0:00:27]} 14. Kf1 {[%emt 0:01:00]} g5 {[%emt 0:02:44]} 15. Bd2 {[%emt 0:04:06]} Qf6 {[%emt 0:01:12]} 16. Be1 {[%emt 0:00:37]} Bxe1 {[%emt 0:00:15]} 17. Kxe1 {[%emt 0:00:15]} Qg6 {[%emt 0:00:50]} 18. Kd2 {[%emt 0:02:22]} Kf7 {[%emt 0:00:38]} 19. Ba2 {[%emt 0:00:19]} Nf6 {[%emt 0:00:59]} 20. b4 {[%emt 0:00:25]} Bd7 {[%emt 0:02:46]} 21. Rad1 {[%emt 0:02:33]} h4 {[%emt 0:01:39]} 22. Nb5 {[%emt 0:05:13]} Ke7 {[%emt 0:03:10]} 23. Kc1 {[%emt 0:01:02]} Rh8 {[%emt 0:02:07]} 24. Kb2 {[%emt 0:03:46]} g4 {[%emt 0:03:14]} 25. Qd3 {[%emt 0:03:12]} b6 {[%emt 0:02:06]} 26. Nxf4 {[%emt 0:02:05]} exf4 {[%emt 0:07:06]} 27. e5 {[%emt 0:00:57]} Qxd3 {[%emt 0:00:49]} 28. exf6+ {[%emt 0:00:45]} Kxf6 {[%emt 0:00:08]} 29. Rxd3 {[%emt 0:00:34]} g3 {[%emt 0:00:25]} 30. Rd4 {[%emt 0:06:34]} Kg5 {[%emt 0:00:23]} 31. Nc3 {[%emt 0:04:00]} Bf5 {[%emt 0:00:26]} 32. Bb1 {[%emt 0:00:18]} Bxb1 {[%emt 0:00:13]} 33. Kxb1 {[%emt 0:01:11]} Rae8 {[%emt 0:00:39]} 34. Ne4+ {[%emt 0:00:49]} Kf5 {[%emt 0:00:17]} 35. Kc2 {[%emt 0:01:06]} Reg8 {[%emt 0:03:58]} 36. Nc3 {[%emt 0:03:30]} Rf8 {[%emt 0:07:05]} 37. Ne2 {[%emt 0:03:50]} Kg5 {[%emt 0:00:26]} 38. Re4 {[%emt 0:02:29]} Re8 {[%emt 0:14:12]} 39. Nc3 {[%emt 0:07:17]} Rxe4 {[%emt 0:00:35]} 40. Nxe4+ {[%emt 0:00:04]} Kf5 {[%emt 0:00:42]} 41. Kd3 {[%emt 0:00:39]} h3 {[%emt 0:01:56]} 42. gxh3 {[%emt 0:00:43]} Nb8 {[%emt 0:01:55]} 43. h4 {[%emt 0:03:22]} Nd7 {[%emt 0:00:38]} 44. h5 {[%emt 0:00:26]} Ne5+ {[%emt 0:00:32]} 45. Ke2 {[%emt 0:00:28]} Nxc4 {[%emt 0:02:05]} 46. a4 {[%emt 0:00:30]} g2 {[%emt 0:01:33]} 47. Rg1 {[%emt 0:00:31]} Ne3 {[%emt 0:00:36]} 48. Nc3 {[%emt 0:02:05]} Rxh5 {[%emt 0:00:42]} 0-1